[Event "Israeli Team-ch 2023"]
[Site "Petah Tikva"]
[Date "2023.01.20"]
[Round "3.34"]
[White "Tzidkiya, Yeshaayahu"]
[Black "Globus, Or"]
[Result "0-1"]
[ECO "C44"]
[WhiteElo "2415"]
[BlackElo "2411"]
[Annotator "TA"]
[PlyCount "80"]
[EventDate "2023.01.13"]
[EventCountry "ISR"]
[SourceTitle "playchess.com"]
[Source "ChessBase"]
[SourceQuality "1"]
[TimeControl "40/5400+30:1800+30"]

{[%evp 10,80,0,-1,0,0,0,0,1,-12,20,-16,0,0,0,-18,-15,-20,-14,-19,-20,-34,-23,-12,-7,0,0,-17,0,0,13,-4,4,-21,0,0,0,-85,-107,-111,-97,-92,-91,-573,-612,-629,-625,-616,-588,-583,-377,-412,-407,-424,156,-418,-402,-565,-570,-567,-643,-638,-637,-622,-607,-668,-558,-733,-729,-781,-776,-916,-902]} 1. e4 {[%emt 0:00:03]} e5 {[%emt 0:13:46]} 2. Nf3 {[%emt 0:00:07]} Nc6 {[%emt 0:00:03]} 3. g3 {[%emt 0:09:05]} Nf6 {[%emt 0:15:59]} 4. d3 {[%emt 0:00:04]} d5 {[%emt 0:10:05]} 5. exd5 {[%emt 0:00:06]} Nxd5 {[%emt 0:00:03]} 6. Bg2 {[%emt 0:00:08]} Bg4 {[%emt 0:00:51] 6...Bd6 is a critical line. C44: Ponziani Opening and Scotch Gambit.} 7. h3 {[%emt 0:01:49]} Bh5 {[%emt 0:00:59]} (7... Bb4+ $2 8. c3 Bf5 9. Nh4 $18 (9. cxb4 Ndxb4 10. O-O Bxd3 $16)) 8. O-O {[%emt 0:00:25]} Bc5 {[%emt 0:07:08] The position is equal.} 9. Nc3 {[%emt 0:30:32]} O-O {[%emt 0:07:51]} 10. g4 {[%emt 0:53:11]} Nxc3 {[%emt 0:01:10]} 11. bxc3 {[%emt 0:00:00]} Bg6 {[%emt 0:00:03]} 12. Rb1 {[%emt 0:00:00]} Bb6 {[%emt 0:05:49]} 13. Ng5 {[%emt 0:00:00]} Qd7 {[%emt 0:12:24] [#]} 14. Be3 $146 {[%emt 0:00:00]} ({Predecessor:} 14. h4 f5 15. h5 Be8 16. gxf5 h6 17. Ne4 Qxf5 18. Be3 Bxh5 19. Qd2 Bf3 20. Ng3 {1-0 Narayanan,S (2618)-Bai,J (2618) RBI op Qualifier 2 blitz 2020 (7)}) 14... Rae8 {[%emt 0:06:30]} 15. Qf3 {[%emt 0:00:00]} h6 {[%emt 0:04:19]} 16. Ne4 {[%emt 0:00:00]} f5 {[%emt 0:00:06]} 17. gxf5 {[%emt 0:00:00]} Bxf5 {[%emt 0:00:07]} 18. Qh5 {[%emt 0:04:00]} Nd8 19. Ng3 {[%emt 0:00:00]} Bh7 {[%emt 0:04:05]} 20. Kh2 {[%emt 0:01:00]} (20. Qg4 {with more complications.} Qd6 21. Ne4 Qe6 22. c4) 20... Ne6 {[%emt 0:03:26]} 21. Qg4 {[%emt 0:00:00]} (21. Qxe5 $5 Nf4 22. Qb5 Qxb5 23. Rxb5 $11) 21... c6 {[%emt 0:00:34]} 22. Bxh6 {[%emt 0:00:00]} Bxf2 {[%emt 0:01:11]} ({Resist} 22... Rxf2 23. Ne4 Rxf1 24. Rxf1 $16) 23. Ne4 {[%emt 0:00:00]} (23. Bf3 $11 Bxg3+ 24. Qxg3) 23... Bf5 $17 {[%emt 0:00:32] Some like it hot} 24. Qh5 {[%emt 0:00:00] [#]} Bxe4 $1 {[%emt 0:01:51]} 25. Bxe4 {[%emt 0:00:00][%cal Oh6e3]} gxh6 {[%emt 0:00:37]} 26. Rg1+ $2 {[%emt 0:00:31][%mdl 8192]} Bxg1+ $19 {[%emt 0:00:26]} 27. Rxg1+ {[%emt 0:00:03]} Ng7 {[%emt 0:00:30]} 28. Qxh6 {[%emt 0:01:21] [#] Threatening mate with Bh7+.} Rf2+ 29. Kh1 {[%emt 0:01:03]} Rf7 (29... Rxc2 $2 30. Bh7+ Kf8 31. Rf1+ $18) 30. Bg6 ({Reject} 30. Qh7+ Kf8 31. Qh6 Qe6 $19) 30... Qd5+ {[%emt 0:01:34]} 31. Rg2 {Threatens to win with Kg1.} Rf1+ {[%emt 0:00:30]} 32. Kh2 {[%emt 0:01:30][%mdl 1024] Bh7+ would kill now. White has strong compensation.} Re7 {[%emt 0:00:30]} 33. c4 {[%emt 0:01:30]} (33. d4 $142 exd4 34. Qh7+ Kf8 35. Qh8+ Qg8 36. Qh4) 33... Qe6 {[%emt 0:01:01] Black is clearly winning.} 34. Bh7+ {[%emt 0:00:21]} Kf8 {[%emt 0:00:56]} 35. Bg6 {[%emt 0:00:05]} Rd7 {[%emt 0:03:04] aiming for ...Qf6.} 36. Qh8+ {[%emt 0:01:36]} Qg8 {[%emt 0:00:00]} 37. Qh4 {[%emt 0:00:00]} Rf4 38. Qg5 {[%emt 0:00:00]} Qe6 39. Qh6 {[%emt 0:00:00]} Qf6 {[%emt 0:00:49]} 40. Qh8+ {[%emt 0:02:00]} Ke7 {[%emt 0:01:41] Weighted Error Value: White=0.37/Black=0.13 (very precise)} 0-1

[Event "Israeli Team-ch 2023"]
[Site "Petah Tikva"]
[Date "2023.01.20"]
[Round "3.35"]
[White "Iliaguev, Nisim"]
[Black "Solomon, Asif"]
[Result "1-0"]
[ECO "A08"]
[WhiteElo "2390"]
[BlackElo "2272"]
[Annotator "TA"]
[PlyCount "79"]
[EventDate "2023.01.13"]
[EventCountry "ISR"]
[SourceTitle "playchess.com"]
[Source "ChessBase"]
[SourceQuality "1"]
[TimeControl "40/5400+30:1800+30"]

{[%evp 11,79,0,9,-4,-2,-29,-12,-17,-18,-16,-15,-20,0,0,3,0,60,76,66,62,88,98,97,78,72,80,95,64,72,45,44,47,50,48,77,0,15,0,95,77,84,0,67,0,167,147,204,205,199,194,258,258,332,283,306,304,762,749,672,375,906,885,842,402,680,676,991,925,29997,29998]} 1. Nf3 {[%emt 0:21:08]} d5 {[%emt 0:00:05]} 2. g3 {[%emt 0:02:45]} c5 {[%emt 0:03:13]} 3. c4 {[%emt 0:01:23]} d4 {[%emt 0:01:20]} 4. Bg2 {[%emt 0:00:11]} Nc6 {[%emt 0:00:06]} 5. O-O {[%emt 0:01:11]} g6 {[%emt 0:05:06]} 6. d3 {[%emt 0:06:13]} Bg7 {[%emt 0:00:05]} 7. a3 {[%emt 0:00:27] A08: King's Indian Attack.} a5 {[%emt 0:04:04]} 8. Qc2 {[%emt 0:04:24]} Nf6 {[%emt 0:03:43]} 9. e3 {[%emt 0:01:07] The position is equal.} O-O {[%emt 0:01:42]} 10. exd4 {[%emt 0:00:07]} cxd4 {[%emt 0:02:07]} 11. Re1 {[%emt 0:01:11] [#]} Qc7 $146 {[%emt 0:09:13]} ({Predecessor:} 11... Re8 12. Bg5 Nd7 13. Bc1 {½-½ Golda,H (2301)-Braeutigam,T (2045) Unterfranken-ch M1 62th 2011 (9)}) 12. Bf4 {[%emt 0:02:38]} Qb6 {[%emt 0:07:49]} 13. Ne5 {[%emt 0:00:52]} Nh5 {[%emt 0:05:52]} (13... Nd8 $11) 14. Nxc6 $14 {[%emt 0:07:45]} bxc6 {[%emt 0:00:09]} 15. Bg5 {[%emt 0:04:04][%cal Bf4g5,Bg5e7,Be7d6][%mdl 32]} (15. Rxe7 Nxf4 16. gxf4 Bf5 $17) 15... e5 {[%emt 0:05:32]} 16. Be7 $1 {[%emt 0:04:43]} Re8 {[%emt 0:00:24]} 17. Bd6 {[%emt 0:00:07]} Bf5 {[%emt 0:12:41][%cal Oc6c5]} 18. Nd2 {[%emt 0:00:19]} Qa6 {[%emt 0:06:44]} 19. Nf3 {[%emt 0:11:48]} f6 {[%emt 0:06:22]} 20. Nd2 {[%emt 0:08:50]} Bf8 {[%emt 0:03:21]} 21. Bxf8 {[%emt 0:00:21]} Rxf8 {[%emt 0:00:07]} 22. Ne4 {[%emt 0:03:21]} Ng7 {[%emt 0:06:42]} 23. h4 {[%emt 0:03:18]} ({White should play} 23. b3 $16) 23... Bxe4 {[%emt 0:04:07]} 24. Bxe4 {[%emt 0:00:02]} f5 {[%emt 0:01:57]} (24... a4 $11) 25. Bg2 {[%emt 0:00:16]} Rae8 {[%emt 0:02:00] [#]} 26. b4 {[%emt 0:01:13]} ({White should try} 26. Qa4 $1 $16 {[%cal Ra4c6]}) 26... f4 {[%emt 0:08:59]} (26... Qc8 $1 $11) 27. Qa4 {[%emt 0:01:47]} (27. b5 $14 cxb5 28. cxb5) 27... f3 $2 {[%emt 0:00:00]} (27... fxg3 $11 {and Black has nothing to worry.} 28. fxg3 (28. Qxc6 $2 gxf2+ 29. Kh1 fxe1=Q+ $19) 28... Qc8) 28. Bh3 $18 {[%emt 0:01:30] Threatens to win with Bd7.} (28. Qxa5 $2 Qxa5 29. bxa5 fxg2 $19) 28... Nh5 {[%emt 0:00:00] [#]} (28... Nf5 $16) 29. Kh2 $1 {[%emt 0:02:08]} (29. Qxa5 Qxa5 30. bxa5 Nxg3 $15) (29. bxa5 Nxg3 30. Bd7 Ne2+ 31. Rxe2 fxe2 32. Bxe8 Rxe8 $17) 29... e4 {[%emt 0:00:25]} 30. dxe4 {[%emt 0:01:58] aiming for Bd7.} (30. bxa5 e3 $11) 30... d3 {[%emt 0:00:39]} (30... Qxc4 $142 31. Rac1 Qd3) 31. Qb3 {[%emt 0:02:27]} (31. bxa5 $6 Qa7 32. c5 (32. Qxc6 $2 Qxf2+ 33. Kh1 Nxg3#) 32... Qxc5 $16) (31. Qxa5 Qxc4 32. Qc5 Qxc5 33. bxc5 Nf6 $14) 31... d2 {[%emt 0:00:28]} 32. Red1 {[%emt 0:01:17]} ({Less strong is} 32. c5+ Rf7 $16) 32... Rxe4 {[%emt 0:00:38]} 33. Rxd2 {[%emt 0:00:01]} axb4 $2 {[%emt 0:00:46]} (33... a4 34. Qc3 c5) 34. c5+ {[%emt 0:01:54]} Kg7 {[%emt 0:00:27]} 35. Qb2+ {[%emt 0:01:07]} (35. axb4 $2 {is the wrong capture.} Qxa1 36. Rd7+ Kh6 $19) 35... Kg8 $2 {[%emt 0:00:27]} (35... Nf6 36. axb4 {[%mdl 64] Discovered Attack} Qc4) 36. axb4 {[%emt 0:01:46]} Qc4 {[%emt 0:00:33]} 37. Rc1 {[%emt 0:00:29]} (37. Ra7 $142 {Intending Rdd7 and mate.} Re2 38. Bf1 {[%mdl 64] Skewer}) 37... Qb5 {[%emt 0:00:29]} (37... Qf7 $142 38. Rd6 Rfe8) 38. Rc3 {[%emt 0:02:33]} Rfe8 {[%emt 0:00:35]} 39. Rxf3 {[%emt 0:00:30]} Rxb4 {[%emt 0:00:16] [#]} 40. Be6+ $1 {[%emt 0:00:12][%mdl 576] Back Rank.   Weighted Error Value: White=0.33/Black=0.71} 1-0

[Event "Israeli Team-ch 2023"]
[Site "Petah Tikva"]
[Date "2023.01.20"]
[Round "3.36"]
[White "Deutsch, Eyal"]
[Black "Kochavi, Ori"]
[Result "1-0"]
[ECO "A46"]
[WhiteElo "2297"]
[BlackElo "2396"]
[Annotator "TA"]
[PlyCount "125"]
[EventDate "2023.01.13"]
[EventCountry "ISR"]
[SourceTitle "playchess.com"]
[Source "ChessBase"]
[SourceQuality "1"]
[TimeControl "40/5400+30:1800+30"]

{[%evp 9,125,4,10,13,20,4,10,3,10,0,7,0,25,13,22,-14,6,10,7,4,13,7,20,8,0,12,7,0,0,-20,-16,-81,-88,-96,-95,-87,-87,-90,0,0,0,0,0,0,0,0,0,0,18,18,24,18,18,22,22,15,19,37,20,-67,-60,-65,-71,-72,-100,-198,-65,-161,-14,-14,-14,-17,0,-59,-8,-110,0,0,0,0,0,0,8,8,8,8,8,8,8,8,8,8,8,8,395,395,393,380,362,286,414,374,551,551,538,467,581,400,392,392,355,265,265,251,1983,2016,1395,1118]} 1. d4 {[%emt 0:00:02]} Nf6 {[%emt 0:10:37]} 2. Nf3 {[%emt 0:00:12]} e6 {[%emt 0:00:04]} 3. Bg5 {[%emt 0:00:44]} h6 {[%emt 0:03:09]} 4. Bh4 {[%emt 0:00:20]} c5 {[%emt 0:02:40]} 5. c3 {[%emt 0:03:10]} Qb6 {[%emt 0:09:02]} 6. Qb3 {[%emt 0:01:17] A46: 1 d4 Nf6 2 Nf3 e6: Torre, London and Colle Systems.} Nc6 {[%emt 0:01:59]} 7. Bxf6 {[%emt 0:00:10]} gxf6 {[%emt 0:00:05]} 8. e3 {[%emt 0:00:12] [#] The position is equal.} d5 $146 {[%emt 0:03:32]} ({Predecessor:} 8... Qc7 9. Nbd2 d5 10. g3 b6 11. Be2 Bb7 12. O-O h5 13. Nh4 Be7 14. f4 f5 {1-0 Shvyrjov,I (2389)-Krupenski,J (2413) Viljandi Raud Olympic 51st rapid 2017 (4.1)}) 9. Nbd2 {[%emt 0:00:33]} cxd4 {[%emt 0:09:12]} 10. exd4 {[%emt 0:04:28]} Rg8 {[%emt 0:07:20]} 11. g3 {[%emt 0:03:06]} Bd6 {[%emt 0:01:28]} 12. O-O-O {[%emt 0:14:17]} Bd7 {[%emt 0:04:18]} 13. Qxb6 {[%emt 0:05:31]} axb6 {[%emt 0:00:04]} 14. a3 {[%emt 0:01:09]} Ke7 {[%emt 0:03:38]} 15. Bd3 {[%emt 0:08:13]} Rgc8 {[%emt 0:40:52]} 16. Rhe1 {[%emt 0:06:29]} Kf8 {[%emt 0:00:00]} 17. Bc2 {[%emt 0:14:49]} b5 {[%emt 0:00:00][%cal Ob5b4]} 18. Nb3 {[%emt 0:05:00]} b6 {[%emt 0:00:00]} 19. Kd2 {[%emt 0:04:11]} Na5 {[%emt 0:00:00][%cal Bc6a5,Ba5c4,Bc4a3][%mdl 32]} 20. Ke2 {[%emt 0:03:06]} (20. Nxa5 $11 {remains equal.} bxa5 21. Ra1) 20... Nc4 $17 {[%emt 0:02:30]} 21. Rb1 {[%emt 0:00:22] [#]} Bxa3 $1 {[%emt 0:00:00]} 22. bxa3 {[%emt 0:00:14]} Nxa3 {[%emt 0:00:00]} 23. Rb2 {[%emt 0:00:09]} Rxc3 {[%emt 0:00:00]} (23... Nc4 $1 $17 {[%cal Rc4b2]} 24. Rbb1 Ra2) 24. Ra1 $11 {[%emt 0:01:58]} b4 {[%emt 0:00:00] Hoping for ...Bb5+.} 25. Bd1 $1 {[%emt 0:01:05]} ({Of course not} 25. Bd3 e5 26. dxe5 fxe5 $17) 25... Bb5+ {[%emt 0:00:00]} 26. Ke1 {[%emt 0:00:48]} e5 {[%emt 0:00:00]} 27. dxe5 {[%emt 0:00:11]} fxe5 {[%emt 0:00:00]} 28. Nfd2 {[%emt 0:00:09]} Rac8 {[%emt 0:00:00]} (28... Bd3 $5) 29. Nb1 {[%emt 0:01:55]} Nc2+ {[%emt 0:00:11]} 30. Bxc2 {[%emt 0:00:18]} Rxc2 {[%emt 0:00:02]} 31. Rxc2 {[%emt 0:00:08]} Rxc2 {[%emt 0:00:04]} 32. N1d2 {[%emt 0:00:11]} Rc3 {[%emt 0:01:29]} 33. Nc1 {[%emt 0:01:26]} Bd7 {[%emt 0:01:43]} 34. Ne2 {[%emt 0:00:39]} (34. Ra8+ $11 Ke7 35. Na2) 34... Ra3 $15 {[%emt 0:00:07]} 35. Rxa3 {[%emt 0:04:44]} bxa3 {[%emt 0:00:04]} 36. Nc1 {[%emt 0:00:09]} Bf5 {[%emt 0:00:24][%mdl 1024] Prevents Nb1. Black has strong compensation.} 37. Ndb3 {[%emt 0:00:24]} (37. f4 $17 {was worth a try.}) 37... Bb1 {[%emt 0:00:09]} (37... d4 $19 {Strongly threatening ...Ke7.} 38. Kd2 Ke7) 38. Kd2 {[%emt 0:01:25]} (38. Nd2 $15 a2 39. Ncb3) 38... d4 $1 $19 {[%emt 0:00:01]} 39. Nd3 $1 {[%emt 0:00:32]} f6 {[%emt 0:00:32]} 40. Nb4 $1 {[%emt 0:00:06]} Bf5 {[%emt 0:02:22]} 41. Kc1 {[%emt 0:32:02]} (41. Na1 $11) 41... Kf7 {[%emt 0:30:23]} (41... Ke7 $15) 42. Na1 {[%emt 0:02:36]} (42. Nd2 $11) 42... Be6 {[%emt 0:00:00]} (42... Ke6 $17 43. f3 Kd6) 43. Nac2 $11 {[%emt 0:00:00]} a2 {[%emt 0:00:00]} 44. Kb2 {[%emt 0:00:00] Inhibits Bb3.} Kg6 {[%emt 0:00:00]} 45. Nxa2 {[%emt 0:00:00]} Kg5 {[%emt 0:00:00]} 46. f3 {[%emt 0:00:00]} Bd5 {[%emt 0:00:00]} 47. Ne1 {[%emt 0:00:00]} e4 {[%emt 0:00:00]} 48. Nb4 {[%emt 0:00:00]} Bb7 {[%emt 0:00:00]} 49. Kc1 {[%emt 0:00:00]} exf3 {[%emt 0:00:00] ...f2 would be deadly.} 50. Ned3 {[%emt 0:00:00]} h5 {[%emt 0:00:00]} 51. Nf2 {[%emt 0:00:00]} f5 $2 {[%emt 0:00:00][%mdl 8192] [#]} (51... Kf5 $1 $11 {and Black stays safe.}) 52. h4+ $1 $18 {[%emt 0:00:00]} Kf6 {[%emt 0:00:00] [#]} 53. Nbd3 $1 {[%emt 0:00:00]} Bc6 {[%emt 0:00:00]} 54. Kd2 {[%emt 0:00:00]} b5 {[%emt 0:00:00]} (54... Be8 $142 55. Nh3 b5) 55. Nf4 {[%emt 0:00:00]} b4 {[%emt 0:00:00]} (55... Be8 {might work better.} 56. N2d3 Ke7) 56. Nxh5+ {[%emt 0:00:00]} Kf7 {[%emt 0:00:00]} 57. Nf4 {[%emt 0:00:00]} Bb5 {[%emt 0:00:00]} 58. N4h3 {[%emt 0:00:00] Black must now prevent Ng5+.} Kf6 {[%emt 0:00:00]} 59. Ng5 {[%emt 0:00:00]} ({Weaker is} 59. Nd3 Bxd3 60. Kxd3 b3 $11) 59... Bc6 {[%emt 0:00:00]} 60. Kc2 {[%emt 0:00:00]} Bd5 {[%emt 0:00:00]} 61. Ngh3 {[%emt 0:00:00]} Be4+ $2 {[%emt 0:01:03]} (61... b3+ 62. Kd2 Bc4) 62. Kb3 {[%emt 0:00:00]} Ke5 {[%emt 0:00:21]} 63. Kxb4 {[%emt 0:00:00] White used his chance.   Weighted Error Value: White=0.22 (precise) /Black=0.32} 1-0

[Event "Israeli Team-ch 2023"]
[Site "Petah Tikva"]
[Date "2023.02.03"]
[Round "5.1"]
[White "Boruchovsky, Avital"]
[Black "Abergel, Thal"]
[Result "1/2-1/2"]
[ECO "A40"]
[WhiteElo "2553"]
[BlackElo "2392"]
[Annotator "TA"]
[PlyCount "45"]
[EventDate "2023.01.13"]
[EventCountry "ISR"]
[SourceTitle "playchess.com"]
[Source "ChessBase"]
[SourceQuality "1"]
[TimeControl "40/5400+30:1800+30"]

{[%evp 9,45,-12,19,9,22,22,18,1,31,0,10,-1,9,4,9,0,20,0,0,0,1,-21,-6,-23,-12,-30,-27,-27,0,-10,0,0,0,-11,-26,-22,-26,-22]} 1. Nf3 {[%emt 1:31:00]} c5 2. g3 {[%emt 0:00:00]} g6 {[%emt 0:03:05]} 3. Bg2 {[%emt 0:00:00]} Bg7 {[%emt 0:00:08]} 4. d4 {[%emt 0:00:00]} cxd4 {[%emt 0:01:41]} 5. Nxd4 {[%emt 0:00:00]} d5 {[%emt 0:03:26]} 6. O-O {[%emt 0:00:00][%cal Oc2c4] A40: Unusual replies to 1 d4.} Nc6 {[%emt 0:02:52]} 7. Nxc6 {[%emt 0:00:00]} bxc6 {[%emt 0:02:48]} 8. e4 {[%emt 0:00:00][%cal Re4d5] The position is equal.} Be6 {[%emt 0:06:49]} 9. Nc3 {[%emt 0:00:00][%cal Re4d5]} Nf6 {[%emt 0:04:06] [#]} 10. exd5 $146 {[%emt 0:00:00]} ({Predecessor:} 10. h3 Qd7 11. Kh2 Rb8 12. f4 O-O 13. e5 Ne8 14. Na4 f6 15. Nc5 Qc8 16. Qd4 {1-0 Tsokopoulos,G (1894)-Kountardas,P (1772) Attica-ch U16 2008 (4)}) 10... cxd5 {[%emt 0:00:12]} 11. Be3 {[%emt 0:00:00]} O-O {[%emt 0:00:48]} 12. Bd4 {[%emt 0:00:00]} Rb8 {[%emt 0:07:39]} 13. Rb1 {[%emt 0:00:00]} Qa5 {[%emt 0:03:47]} 14. a3 {[%emt 0:00:00]} Rfd8 {[%emt 0:01:14]} 15. h3 {[%emt 0:00:00]} Ne8 {[%emt 0:26:00][%cal Bf6e8,Be8g7,Bg7f5][%mdl 32]} 16. Ne2 {[%emt 0:00:00][%cal Bc3e2,Be2f4,Bf4d3][%mdl 32]} Bc8 {[%emt 0:02:32]} 17. Bxg7 {[%emt 0:00:00]} Nxg7 {[%emt 0:00:33]} 18. Nf4 {[%emt 0:00:00][%cal Rf4d5]} d4 {[%emt 0:03:55]} 19. Nd3 {[%emt 0:00:00]} Qc7 {[%emt 0:02:37]} 20. Re1 {[%emt 0:00:00]} Bb7 {[%emt 0:01:04]} 21. Qe2 {[%emt 0:00:00]} Bxg2 {[%emt 0:01:06]} 22. Kxg2 {[%emt 0:00:00]} Nf5 {[%emt 0:00:58]} 23. Rbc1 {[%emt 0:00:00] A rather calm draw.   Weighted Error Value: White=0.10 (very precise) /Black=0.09 (flawless)} 1/2-1/2

[Event "Israeli Team-ch 2023"]
[Site "Petah Tikva"]
[Date "2023.02.03"]
[Round "5.2"]
[White "Poleg, Matan"]
[Black "Rozen, Eytan"]
[Result "0-1"]
[ECO "B30"]
[WhiteElo "2272"]
[BlackElo "2440"]
[Annotator "TA"]
[PlyCount "68"]
[EventDate "2023.01.13"]
[EventCountry "ISR"]
[SourceTitle "playchess.com"]
[Source "ChessBase"]
[SourceQuality "1"]
[TimeControl "40/5400+30:1800+30"]

{[%evp 11,68,14,0,0,7,0,0,0,0,-13,-14,-29,-21,-39,-33,-38,-33,-58,-41,-72,-75,-76,-51,-44,-49,-55,-51,-129,-120,-133,-88,-86,-76,-71,-76,-100,-114,-140,-132,-249,-256,-236,-243,-258,-240,-500,-500,-497,-354,-345,-315,-329,-318,-435,-443,-603,-603,-603,-603]} 1. e4 {[%emt 0:01:10]} c5 {[%emt 0:01:53]} 2. Nf3 {[%emt 0:02:40]} e6 {[%emt 0:00:05]} 3. Nc3 {[%emt 0:02:15]} Nc6 {[%emt 0:00:29]} 4. Bb5 {[%emt 0:00:58]} Nd4 {[%emt 0:00:31]} 5. Bc4 {[%emt 0:00:18]} Nf6 {[%emt 0:01:24]} 6. O-O {[%emt 0:01:03]} a6 {[%emt 0:01:13]} ({Resist} 6... d5 7. exd5 Bd6 8. dxe6 Bxe6 9. d3 $14) 7. d3 {[%emt 0:01:58] B30: Sicilian: 2...Nc6 3 Bb5, lines without ...g6.} b5 {[%emt 0:03:42]} 8. Bb3 {[%emt 0:00:24]} Nxb3 {[%emt 0:00:07]} 9. axb3 {[%emt 0:00:07] The position is equal.} Bb7 {[%emt 0:00:07]} 10. Re1 {[%emt 0:07:20]} (10. e5 $5 {[%cal Re5f6]} b4 11. Na4 $14) 10... d6 {[%emt 0:02:39] [#]} 11. Bd2 $146 {[%emt 0:01:38]} ({Predecessor:} 11. e5 dxe5 12. Nxe5 Be7 13. Bg5 O-O 14. Qe2 Nd5 15. Bxe7 Qxe7 16. Qg4 Rad8 17. Nxd5 Rxd5 {½-½ Moskalenko,A (2515)-Horak,M (2331) Titled Tuesday intern op 5th May blitz 2020 (3)}) 11... Be7 {[%emt 0:02:30][%cal Bf8e7,Be7h4,Bh4f6][%mdl 32]} 12. h3 {[%emt 0:00:30]} O-O {[%emt 0:01:58]} 13. Nh2 {[%emt 0:01:07]} Nd7 {[%emt 0:03:53]} 14. Qe2 {[%emt 0:03:20]} Qc7 {[%emt 0:05:30]} 15. f4 {[%emt 0:09:05]} Bh4 {[%emt 0:02:03]} 16. Rf1 {[%emt 0:00:09]} b4 {[%emt 0:00:09]} 17. Nd1 {[%emt 0:00:33]} f5 {[%emt 0:00:42]} 18. Nf3 {[%emt 0:12:12]} Bf6 {[%emt 0:00:30]} 19. c4 {[%emt 0:02:16]} (19. c3 $15) 19... a5 {[%emt 0:04:05]} 20. Kh1 {[%emt 0:08:22]} fxe4 {[%emt 0:09:51]} 21. dxe4 {[%emt 0:00:02]} Qc6 {[%emt 0:00:09]} 22. Re1 {[%emt 0:01:50]} Bd4 {[%emt 0:06:43] Black is more active.} 23. Nxd4 {[%emt 0:18:57]} cxd4 {[%emt 0:00:03]} 24. Nf2 {[%emt 0:00:46]} Nc5 {[%emt 0:01:29]} 25. Qd1 {[%emt 0:00:58]} (25. Qf3 $17 {was called for.}) 25... e5 $19 {[%emt 0:05:54]} 26. g3 {[%emt 0:02:33]} Rae8 {[%emt 0:09:58] [#] Strongly threatening ...exf4.} 27. Qf3 {[%emt 0:02:14]} d3 {[%emt 0:02:11] ...exf4 is the strong threat.} 28. Rxa5 $2 {[%emt 0:19:45]} (28. Kh2 {was necessary.}) 28... Nxb3 {[%emt 0:01:11]} 29. Bxb4 {[%emt 0:00:00]} Nxa5 {[%emt 0:06:25]} 30. Bxa5 {[%emt 0:00:00]} exf4 {[%emt 0:00:09]} (30... Qxc4 $2 {perishes.} 31. Kg1) 31. gxf4 {[%emt 0:00:00]} Qxc4 {[%emt 0:00:28] White must now prevent ...d5.} 32. Bc3 {[%emt 0:00:00]} d5 {[%emt 0:00:34][%cal Bd6d5,Bd5d4][%mdl 32] [#] aiming for ...d4. Black is clearly winning.} 33. Qxd3 {[%emt 0:00:00]} Qxd3 {[%emt 0:00:28]} 34. Nxd3 {[%emt 0:00:00]} d4 {[%emt 0:00:35] Weighted Error Value: White=0.46/Black=0.11 (very precise)} 0-1